[Event "*** Titled Tuesday Blitz"]
[Site "Chess.com"]
[Date "2020.04.21"]
[Round "2"]
[White "vpsetter"]
[Black "GeorgMeier"]
[Result "0-1"]
[WhiteElo "2611"]
[BlackElo "3050"]
[TimeControl "180+1"]
[EndTime "10:19:11 PDT"]
[Termination "GeorgMeier won by resignation"]

1. e4 {[%clk 0:02:59.2]} 1... e6 {[%clk 0:02:59.9]} 2. d4 {[%clk 0:02:58.8]}
2... d5 {[%clk 0:03:00]} 3. Nc3 {[%clk 0:02:59.6]} 3... dxe4 {[%clk 0:03:00.3]}
4. Nxe4 {[%clk 0:02:59.9]} 4... Nd7 {[%clk 0:03:01.2]} 5. Nf3 {[%clk 0:02:52.2]}
5... Ngf6 {[%clk 0:03:02.1]} 6. Nxf6+ {[%clk 0:02:51.6]} 6... Nxf6 {[%clk
0:03:03]} 7. Bd3 {[%clk 0:02:51.4]} 7... c5 {[%clk 0:03:00.9]} 8. dxc5 {[%clk
0:02:49.9]} 8... Bxc5 {[%clk 0:03:01.8]} 9. Bg5 {[%clk 0:02:47.5]} 9... h6
{[%clk 0:03:01.3]} 10. Bh4 {[%clk 0:02:46.1]} 10... O-O {[%clk 0:02:59.8]} 11.
Qe2 {[%clk 0:02:45.1]} 11... Qa5+ {[%clk 0:02:55]} 12. c3 {[%clk 0:02:42.5]}
12... Nd5 {[%clk 0:02:55.1]} 13. Qd2 {[%clk 0:01:54.1]} 13... Be7 {[%clk
0:02:07.1]} 14. Bxe7 {[%clk 0:01:45]} 14... Nxe7 {[%clk 0:02:07.2]} 15. Qe2
{[%clk 0:01:32.4]} 15... Rd8 {[%clk 0:02:01.5]} 16. O-O {[%clk 0:01:20.5]} 16...
Qc7 {[%clk 0:01:59.4]} 17. Rfd1 {[%clk 0:01:10.1]} 17... Bd7 {[%clk 0:01:57.7]}
18. Ne5 {[%clk 0:01:08.1]} 18... Bc6 {[%clk 0:01:53.5]} 19. Nxc6 {[%clk
0:00:59.2]} 19... Nxc6 {[%clk 0:01:49]} 20. Qe4 {[%clk 0:00:58.9]} 20... g6
{[%clk 0:01:48.1]} 21. h4 {[%clk 0:00:39.3]} 21... h5 {[%clk 0:01:48.3]} 22. Bc2
{[%clk 0:00:36.8]} 22... Kg7 {[%clk 0:01:44.4]} 23. Qe3 {[%clk 0:00:31.3]} 23...
Qe5 {[%clk 0:01:38.5]} 24. Qxe5+ {[%clk 0:00:25.7]} 24... Nxe5 {[%clk
0:01:39.4]} 25. Be4 {[%clk 0:00:26]} 25... Rab8 {[%clk 0:01:39.1]} 26. b3 {[%clk
0:00:09.7]} 26... b6 {[%clk 0:01:37.3]} 27. Kf1 {[%clk 0:00:10]} 27... Kf6
{[%clk 0:01:24.8]} 28. c4 {[%clk 0:00:08.1]} 28... Ke7 {[%clk 0:01:23.9]} 29.
Ke2 {[%clk 0:00:07.9]} 29... a5 {[%clk 0:01:23.3]} 30. f4 {[%clk 0:00:08.1]}
30... Nd7 {[%clk 0:01:23]} 31. a3 {[%clk 0:00:05.6]} 31... Rbc8 {[%clk 0:01:21]}
32. Rac1 {[%clk 0:00:04.7]} 32... Rc7 {[%clk 0:01:10.4]} 33. b4 {[%clk
0:00:04.4]} 33... Rdc8 {[%clk 0:01:07.7]} 34. Bd3 {[%clk 0:00:03.8]} 34... Nf6
{[%clk 0:01:04.7]} 35. Kf3 {[%clk 0:00:03.7]} 35... axb4 {[%clk 0:01:01.7]} 36.
axb4 {[%clk 0:00:04]} 36... Nd5 {[%clk 0:01:02.1]} 37. b5 {[%clk 0:00:03.6]}
37... Nf6 {[%clk 0:00:53.2]} 38. Ra1 {[%clk 0:00:03.8]} 38... Rd8 {[%clk
0:00:48.1]} 39. Be2 {[%clk 0:00:03.2]} 39... Rxd1 {[%clk 0:00:46.3]} 40. Rxd1
{[%clk 0:00:04.1]} 40... Ra7 {[%clk 0:00:46.6]} 41. Rc1 {[%clk 0:00:03.6]} 41...
Ra3+ {[%clk 0:00:46.2]} 42. Kf2 {[%clk 0:00:04.4]} 42... Ne4+ {[%clk 0:00:46.3]}
43. Kg1 {[%clk 0:00:05.1]} 43... Nc5 {[%clk 0:00:44.7]} 44. Bf3 {[%clk
0:00:04.4]} 44... Nd3 {[%clk 0:00:44.7]} 45. Rd1 {[%clk 0:00:05.1]} 45... Nxf4
{[%clk 0:00:42.2]} 46. Bc6 {[%clk 0:00:05.4]} 46... Rc3 {[%clk 0:00:41.5]} 47.
Rd7+ {[%clk 0:00:05.2]} 47... Kf6 {[%clk 0:00:41.6]} 48. Rb7 {[%clk 0:00:05.9]}
48... Rxc4 {[%clk 0:00:40.3]} 49. Rxb6 {[%clk 0:00:06.4]} 49... Rb4 {[%clk
0:00:40.3]} 50. Rb7 {[%clk 0:00:06.6]} 50... Rb2 {[%clk 0:00:29.9]} 51. b6
{[%clk 0:00:06.8]} 51... Nd5 {[%clk 0:00:28.6]} 52. Bxd5 {[%clk 0:00:05.1]}
52... exd5 {[%clk 0:00:29.5]} 53. Rb8 {[%clk 0:00:05.7]} 53... Kf5 {[%clk
0:00:29.1]} 54. b7 {[%clk 0:00:03.8]} 54... Kg4 {[%clk 0:00:29]} 55. Rd8 {[%clk
0:00:03.4]} 55... Rxb7 {[%clk 0:00:27.2]} 56. Rxd5 {[%clk 0:00:04]} 56... Kxh4
{[%clk 0:00:27.8]} 57. Kh2 {[%clk 0:00:04.3]} 57... f5 {[%clk 0:00:26.1]} 58.
Rd4+ {[%clk 0:00:04.2]} 58... Kg5 {[%clk 0:00:26]} 59. Rd6 {[%clk 0:00:05.1]}
59... Re7 {[%clk 0:00:26.3]} 60. g3 {[%clk 0:00:05.5]} 60... Re4 {[%clk
0:00:26.7]} 61. Kh3 {[%clk 0:00:05.7]} 61... h4 {[%clk 0:00:27.6]} 62. gxh4+
{[%clk 0:00:05.6]} 62... Rxh4+ {[%clk 0:00:27.8]} 63. Kg3 {[%clk 0:00:06.5]}
63... Rg4+ {[%clk 0:00:28.7]} 0-1

[Event "*** Titled Tuesday Blitz"]
[Site "Chess.com"]
[Date "2020.04.21"]
[Round "2"]
[White "LiamPutnam2008"]
[Black "algatar2020"]
[Result "1-0"]
[WhiteElo "2484"]
[BlackElo "1928"]
[TimeControl "180+1"]
[EndTime "10:19:14 PDT"]
[Termination "LiamPutnam2008 won by checkmate"]

1. e4 {[%clk 0:03:00.9]} 1... g6 {[%clk 0:02:57.7]} 2. d4 {[%clk 0:02:56]} 2...
Bg7 {[%clk 0:02:56.6]} 3. Nc3 {[%clk 0:02:53.6]} 3... d6 {[%clk 0:02:55.5]} 4.
Be3 {[%clk 0:02:53.1]} 4... Nf6 {[%clk 0:02:55.3]} 5. h3 {[%clk 0:02:45.5]} 5...
c6 {[%clk 0:02:55.3]} 6. g4 {[%clk 0:02:44.1]} 6... Qc7 {[%clk 0:02:54.1]} 7.
Bg2 {[%clk 0:02:43.7]} 7... e5 {[%clk 0:02:53.6]} 8. Nge2 {[%clk 0:02:33.5]}
8... Nbd7 {[%clk 0:02:48.8]} 9. Qd2 {[%clk 0:02:31.4]} 9... b5 {[%clk
0:02:47.8]} 10. a3 {[%clk 0:02:28.2]} 10... a5 {[%clk 0:02:47.5]} 11. O-O {[%clk
0:02:18.4]} 11... Rb8 {[%clk 0:02:42.5]} 12. b4 {[%clk 0:02:10.4]} 12... a4
{[%clk 0:02:39.5]} 13. Rad1 {[%clk 0:02:02.3]} 13... O-O {[%clk 0:02:37.3]} 14.
f4 {[%clk 0:01:59.2]} 14... Nb6 {[%clk 0:02:24.4]} 15. dxe5 {[%clk 0:01:53]}
15... dxe5 {[%clk 0:02:22.8]} 16. Bc5 {[%clk 0:01:51.1]} 16... Nc4 {[%clk
0:02:19.5]} 17. Qc1 {[%clk 0:01:48.2]} 17... Re8 {[%clk 0:02:19.2]} 18. f5
{[%clk 0:01:42]} 18... Nd7 {[%clk 0:02:15.4]} 19. Bf2 {[%clk 0:01:38.8]} 19...
Ndb6 {[%clk 0:02:09]} 20. Ng3 {[%clk 0:01:37.3]} 20... h6 {[%clk 0:01:57]} 21.
h4 {[%clk 0:01:36.2]} 21... Qe7 {[%clk 0:01:54.6]} 22. g5 {[%clk 0:01:35.1]}
22... hxg5 {[%clk 0:01:54.4]} 23. hxg5 {[%clk 0:01:36]} 23... Qc7 {[%clk
0:01:46.5]} 24. Kh2 {[%clk 0:01:26.5]} 24... Bf8 {[%clk 0:01:36.2]} 25. Rh1
{[%clk 0:01:17]} 25... Rd8 {[%clk 0:01:29.3]} 26. Rd3 {[%clk 0:01:12.3]} 26...
Rxd3 {[%clk 0:01:26.1]} 27. cxd3 {[%clk 0:01:13.2]} 27... Nd6 {[%clk 0:01:25.6]}
28. f6 {[%clk 0:00:52.3]} 28... Qd7 {[%clk 0:01:16.5]} 29. Kg1 {[%clk
0:00:48.8]} 29... Qg4 {[%clk 0:01:15.5]} 30. Bh3 {[%clk 0:00:38.7]} 30... Qf3
{[%clk 0:01:13.6]} 31. Qe3 {[%clk 0:00:33.9]} 31... Qxe3 {[%clk 0:01:12.8]} 32.
Bxe3 {[%clk 0:00:34.8]} 32... Bxh3 {[%clk 0:01:12.2]} 33. Rxh3 {[%clk
0:00:35.7]} 33... Nd7 {[%clk 0:01:09.5]} 34. Kf2 {[%clk 0:00:30.5]} 34... Rc8
{[%clk 0:01:08.7]} 35. Rh1 {[%clk 0:00:19.5]} 35... c5 {[%clk 0:01:08.1]} 36.
Nd5 {[%clk 0:00:16.7]} 36... cxb4 {[%clk 0:01:03.8]} 37. axb4 {[%clk 0:00:12.3]}
37... Rc2+ {[%clk 0:00:44]} 38. Kf3 {[%clk 0:00:12.2]} 38... Ne8 {[%clk
0:00:36.3]} 39. Rb1 {[%clk 0:00:08.5]} 39... a3 {[%clk 0:00:33.7]} 40. Ne2
{[%clk 0:00:08.7]} 40... a2 {[%clk 0:00:33]} 41. Ra1 {[%clk 0:00:09.3]} 41...
Rb2 {[%clk 0:00:28.4]} 42. Bc1 {[%clk 0:00:06.4]} 42... Rc2 {[%clk 0:00:22.3]}
43. Ne3 {[%clk 0:00:04.4]} 43... Bxb4 {[%clk 0:00:20.5]} 44. Nxc2 {[%clk
0:00:04.2]} 44... Bc5 {[%clk 0:00:17.7]} 45. Rxa2 {[%clk 0:00:05.1]} 45... Nd6
{[%clk 0:00:16.8]} 46. Be3 {[%clk 0:00:05.7]} 46... Bxe3 {[%clk 0:00:15.8]} 47.
Nxe3 {[%clk 0:00:06.6]} 47... Nc5 {[%clk 0:00:16.2]} 48. Ra8+ {[%clk 0:00:07]}
48... Kh7 {[%clk 0:00:16]} 49. d4 {[%clk 0:00:07.5]} 49... exd4 {[%clk 0:00:16]}
50. Nxd4 {[%clk 0:00:08.2]} 50... Ncxe4 {[%clk 0:00:16.4]} 51. Ra7 {[%clk
0:00:08.1]} 51... Nxg5+ {[%clk 0:00:15.4]} 52. Kg4 {[%clk 0:00:08.3]} 52... Nge4
{[%clk 0:00:15.5]} 53. Nd5 {[%clk 0:00:07.7]} 53... Kh6 {[%clk 0:00:14.4]} 54.
Rd7 {[%clk 0:00:05.5]} 54... b4 {[%clk 0:00:14.5]} 55. Kh3 {[%clk 0:00:02.2]}
55... b3 {[%clk 0:00:14.4]} 56. Rd8 {[%clk 0:00:02.9]} 56... b2 {[%clk
0:00:12.6]} 57. Rb8 {[%clk 0:00:03.5]} 57... Kg5 {[%clk 0:00:12.2]} 58. Rxb2
{[%clk 0:00:03.9]} 58... Nxf6 {[%clk 0:00:12.2]} 59. Rg2+ {[%clk 0:00:04.3]}
59... Kh6 {[%clk 0:00:08.2]} 60. Nxf6 {[%clk 0:00:05.2]} 60... Nf5 {[%clk
0:00:08.3]} 61. Nxf5+ {[%clk 0:00:05.2]} 61... gxf5 {[%clk 0:00:08.5]} 62. Nd5
{[%clk 0:00:05]} 62... f4 {[%clk 0:00:08.4]} 63. Nxf4 {[%clk 0:00:05.3]} 63...
f5 {[%clk 0:00:08.3]} 64. Kh4 {[%clk 0:00:06]} 64... Kh7 {[%clk 0:00:07.7]} 65.
Kh5 {[%clk 0:00:06.9]} 65... Kh8 {[%clk 0:00:07.7]} 66. Rg6 {[%clk 0:00:07.6]}
66... Kh7 {[%clk 0:00:07.7]} 67. Ne6 {[%clk 0:00:08.3]} 67... Kh8 {[%clk
0:00:07.7]} 68. Ng5 {[%clk 0:00:09.2]} 68... f4 {[%clk 0:00:06.5]} 69. Kh6
{[%clk 0:00:10.1]} 69... f3 {[%clk 0:00:06.6]} 70. Nf7# {[%clk 0:00:11]} 1-0

[Event "*** Titled Tuesday Blitz"]
[Site "Chess.com"]
[Date "2020.04.21"]
[Round "2"]
[White "LucaBrasi1968"]
[Black "JakubPulpan"]
[Result "1/2-1/2"]
[WhiteElo "2501"]
[BlackElo "2702"]
[TimeControl "180+1"]
[EndTime "10:19:15 PDT"]
[Termination "Game drawn by stalemate"]

1. d4 {[%clk 0:03:00.9]} 1... Nf6 {[%clk 0:02:57.6]} 2. Nf3 {[%clk 0:03:00.8]}
2... d5 {[%clk 0:02:58]} 3. c4 {[%clk 0:03:00.1]} 3... e6 {[%clk 0:02:58.4]} 4.
cxd5 {[%clk 0:02:59.4]} 4... exd5 {[%clk 0:02:58.8]} 5. Nc3 {[%clk 0:02:59.5]}
5... c6 {[%clk 0:02:59.3]} 6. Bg5 {[%clk 0:02:57.6]} 6... Be7 {[%clk 0:02:52]}
7. e3 {[%clk 0:02:57.5]} 7... h6 {[%clk 0:02:52.1]} 8. Bh4 {[%clk 0:02:56.9]}
8... O-O {[%clk 0:02:52.3]} 9. Bd3 {[%clk 0:02:56.2]} 9... Re8 {[%clk
0:02:46.6]} 10. Bg3 {[%clk 0:02:45.4]} 10... Nbd7 {[%clk 0:02:38.6]} 11. h3
{[%clk 0:02:44.5]} 11... Qb6 {[%clk 0:02:24.4]} 12. Qc2 {[%clk 0:02:38]} 12...
Nf8 {[%clk 0:02:19.6]} 13. O-O {[%clk 0:02:34.4]} 13... a5 {[%clk 0:02:14.2]}
14. a3 {[%clk 0:02:32.4]} 14... Be6 {[%clk 0:02:08.4]} 15. Na4 {[%clk
0:02:27.6]} 15... Qd8 {[%clk 0:02:06.9]} 16. Nc5 {[%clk 0:02:27.3]} 16... Bxc5
{[%clk 0:02:05.5]} 17. Qxc5 {[%clk 0:02:26.2]} 17... N8d7 {[%clk 0:02:03.6]} 18.
Qc2 {[%clk 0:02:24.4]} 18... Ne4 {[%clk 0:02:00.3]} 19. Bh2 {[%clk 0:02:19.5]}
19... Ndf6 {[%clk 0:02:00.7]} 20. Ne5 {[%clk 0:02:17.7]} 20... Nd6 {[%clk
0:01:53.5]} 21. b4 {[%clk 0:02:16.1]} 21... Rc8 {[%clk 0:01:38.6]} 22. Rfb1
{[%clk 0:02:05.6]} 22... Nd7 {[%clk 0:01:17.7]} 23. Nxd7 {[%clk 0:01:53.8]}
23... Qxd7 {[%clk 0:01:16.4]} 24. Bxd6 {[%clk 0:01:45.9]} 24... Qxd6 {[%clk
0:01:15.9]} 25. bxa5 {[%clk 0:01:46.3]} 25... Qc7 {[%clk 0:01:15.7]} 26. Qc3
{[%clk 0:01:42.4]} 26... Ra8 {[%clk 0:01:15.9]} 27. Qb4 {[%clk 0:01:36.9]} 27...
Re7 {[%clk 0:01:02.2]} 28. a6 {[%clk 0:01:26.2]} 28... bxa6 {[%clk 0:00:58.1]}
29. Qb6 {[%clk 0:01:20.4]} 29... a5 {[%clk 0:00:56.8]} 30. Qxc7 {[%clk 0:01:16]}
30... Rxc7 {[%clk 0:00:57.7]} 31. Rb6 {[%clk 0:00:58.9]} 31... c5 {[%clk
0:00:54.5]} 32. dxc5 {[%clk 0:00:56.4]} 32... Rxc5 {[%clk 0:00:55.4]} 33. Rab1
{[%clk 0:00:55.4]} 33... g5 {[%clk 0:00:54]} 34. Rb8+ {[%clk 0:00:50.6]} 34...
Rxb8 {[%clk 0:00:53.1]} 35. Rxb8+ {[%clk 0:00:50.9]} 35... Kg7 {[%clk 0:00:54]}
36. Rb5 {[%clk 0:00:49.7]} 36... Rc3 {[%clk 0:00:53.7]} 37. Be2 {[%clk
0:00:43.3]} 37... Rxa3 {[%clk 0:00:54]} 38. Bf3 {[%clk 0:00:43.6]} 38... d4
{[%clk 0:00:41.3]} 39. exd4 {[%clk 0:00:35.4]} 39... Ra1+ {[%clk 0:00:40.8]} 40.
Kh2 {[%clk 0:00:35.1]} 40... Bc4 {[%clk 0:00:17.3]} 41. Rc5 {[%clk 0:00:34.3]}
41... Bb3 {[%clk 0:00:17.8]} 42. d5 {[%clk 0:00:34.5]} 42... Kf6 {[%clk
0:00:18.3]} 43. Rc6+ {[%clk 0:00:30.1]} 43... Ke5 {[%clk 0:00:16.9]} 44. d6
{[%clk 0:00:29.5]} 44... Be6 {[%clk 0:00:16.4]} 45. Bg4 {[%clk 0:00:23.2]} 45...
f5 {[%clk 0:00:15.2]} 46. Bf3 {[%clk 0:00:18.7]} 46... a4 {[%clk 0:00:15.8]} 47.
Ra6 {[%clk 0:00:18.3]} 47... a3 {[%clk 0:00:16.1]} 48. g4 {[%clk 0:00:11.9]}
48... a2 {[%clk 0:00:14.7]} 49. gxf5 {[%clk 0:00:09.6]} 49... Bxf5 {[%clk
0:00:14.3]} 50. Bg4 {[%clk 0:00:09.7]} 50... Be6 {[%clk 0:00:09.6]} 51. Bxe6
{[%clk 0:00:09.1]} 51... Kxe6 {[%clk 0:00:10.5]} 52. Kg2 {[%clk 0:00:08.6]}
52... Kd7 {[%clk 0:00:10.9]} 53. Kh2 {[%clk 0:00:08.8]} 53... Kc8 {[%clk
0:00:11.2]} 54. Kg2 {[%clk 0:00:09.1]} 54... Kd8 {[%clk 0:00:11.7]} 55. Kh2
{[%clk 0:00:08.7]} 55... Kd7 {[%clk 0:00:12.4]} 56. Kg2 {[%clk 0:00:08.4]} 56...
Rd1 {[%clk 0:00:12.8]} 57. Rxa2 {[%clk 0:00:08.1]} 57... Rxd6 {[%clk 0:00:13.7]}
58. Re2 {[%clk 0:00:08.3]} 58... Re6 {[%clk 0:00:12.7]} 59. Rxe6 {[%clk
0:00:08.2]} 59... Kxe6 {[%clk 0:00:13.6]} 60. Kg3 {[%clk 0:00:08.8]} 60... Kf5
{[%clk 0:00:12.5]} 61. h4 {[%clk 0:00:09.2]} 61... g4 {[%clk 0:00:12.1]} 62. f3
{[%clk 0:00:09.2]} 62... gxf3 {[%clk 0:00:13]} 63. Kxf3 {[%clk 0:00:09.5]} 63...
h5 {[%clk 0:00:13.9]} 64. Kg3 {[%clk 0:00:10]} 64... Ke4 {[%clk 0:00:14.8]} 65.
Kg2 {[%clk 0:00:10.4]} 65... Kf4 {[%clk 0:00:15.7]} 66. Kh1 {[%clk 0:00:10.7]}
66... Kf3 {[%clk 0:00:16.6]} 67. Kg1 {[%clk 0:00:11]} 67... Kg4 {[%clk
0:00:17.5]} 68. Kh1 {[%clk 0:00:11.9]} 68... Kxh4 {[%clk 0:00:18.4]} 69. Kg1
{[%clk 0:00:12.8]} 69... Kg4 {[%clk 0:00:19.3]} 70. Kh1 {[%clk 0:00:13.6]} 70...
h4 {[%clk 0:00:20.2]} 71. Kg1 {[%clk 0:00:14]} 71... Kg3 {[%clk 0:00:21.1]} 72.
Kh1 {[%clk 0:00:14.4]} 72... h3 {[%clk 0:00:22]} 73. Kg1 {[%clk 0:00:14.6]}
73... Kf3 {[%clk 0:00:22.9]} 74. Kh1 {[%clk 0:00:15]} 74... Kg4 {[%clk
0:00:23.8]} 75. Kg1 {[%clk 0:00:15.5]} 75... Kh4 {[%clk 0:00:24.7]} 76. Kh1
{[%clk 0:00:16]} 76... Kg3 {[%clk 0:00:25.6]} 77. Kg1 {[%clk 0:00:16.5]} 77...
h2+ {[%clk 0:00:26.5]} 78. Kh1 {[%clk 0:00:17]} 78... Kh3 {[%clk 0:00:27.4]}
1/2-1/2

[Event "*** Titled Tuesday Blitz"]
[Site "Chess.com"]
[Date "2020.04.21"]
[Round "2"]
[White "DonPreuss"]
[Black "Flawless_Fighter"]
[Result "1/2-1/2"]
[WhiteElo "2217"]
[BlackElo "2548"]
[TimeControl "180+1"]
[EndTime "10:19:18 PDT"]
[Termination "Game drawn by stalemate"]

1. d4 {[%clk 0:03:00.7]} 1... Nf6 {[%clk 0:02:59.7]} 2. Nc3 {[%clk 0:02:57.6]}
2... d5 {[%clk 0:02:58.6]} 3. e4 {[%clk 0:02:57.9]} 3... dxe4 {[%clk 0:02:54.3]}
4. f3 {[%clk 0:02:58.2]} 4... exf3 {[%clk 0:02:52.5]} 5. Nxf3 {[%clk 0:02:59.1]}
5... e6 {[%clk 0:02:45.1]} 6. Bd3 {[%clk 0:02:58.8]} 6... Nc6 {[%clk 0:02:39.5]}
7. a3 {[%clk 0:02:48.8]} 7... Be7 {[%clk 0:02:38.3]} 8. Be3 {[%clk 0:02:46.6]}
8... O-O {[%clk 0:02:35.7]} 9. O-O {[%clk 0:02:46.5]} 9... Ng4 {[%clk
0:02:33.3]} 10. Bd2 {[%clk 0:02:39.6]} 10... Nxd4 {[%clk 0:02:30.4]} 11. Qe1
{[%clk 0:01:56.4]} 11... Qd6 {[%clk 0:02:07.7]} 12. Qg3 {[%clk 0:01:25.6]} 12...
Qxg3 {[%clk 0:02:00.3]} 13. hxg3 {[%clk 0:01:25.5]} 13... c5 {[%clk 0:01:40.9]}
14. Nxd4 {[%clk 0:01:06.7]} 14... cxd4 {[%clk 0:01:41.8]} 15. Nb5 {[%clk
0:01:06.8]} 15... e5 {[%clk 0:01:27.7]} 16. Rae1 {[%clk 0:00:45]} 16... Rd8
{[%clk 0:01:17.1]} 17. Bc4 {[%clk 0:00:42.5]} 17... Be6 {[%clk 0:01:03.9]} 18.
Bxe6 {[%clk 0:00:41.6]} 18... fxe6 {[%clk 0:01:04.8]} 19. Nc7 {[%clk 0:00:42]}
19... Rac8 {[%clk 0:01:04.9]} 20. Nxe6 {[%clk 0:00:41.3]} 20... Rd6 {[%clk
0:01:01.5]} 21. Ng5 {[%clk 0:00:29.9]} 21... Rxc2 {[%clk 0:00:47.3]} 22. Ne4
{[%clk 0:00:29.2]} 22... Rdc6 {[%clk 0:00:46.9]} 23. Bb4 {[%clk 0:00:25.7]}
23... Bxb4 {[%clk 0:00:43.2]} 24. axb4 {[%clk 0:00:26.6]} 24... Rxb2 {[%clk
0:00:37.7]} 25. Nc5 {[%clk 0:00:17.3]} 25... Rxb4 {[%clk 0:00:27.6]} 26. Nd7
{[%clk 0:00:17.3]} 26... h6 {[%clk 0:00:23.9]} 27. Rf8+ {[%clk 0:00:16.2]} 27...
Kh7 {[%clk 0:00:22.8]} 28. Rd8 {[%clk 0:00:15.7]} 28... Rd6 {[%clk 0:00:18]} 29.
Nf8+ {[%clk 0:00:15.2]} 29... Kg8 {[%clk 0:00:17.1]} 30. Rxd6 {[%clk 0:00:15.1]}
30... Kxf8 {[%clk 0:00:18]} 31. Rf1+ {[%clk 0:00:14.6]} 31... Kg8 {[%clk
0:00:05.5]} 32. Rd8+ {[%clk 0:00:14.5]} 32... Kh7 {[%clk 0:00:06.1]} 33. Rdf8
{[%clk 0:00:13.7]} 33... Ne3 {[%clk 0:00:03.9]} 34. R1f2 {[%clk 0:00:12.3]}
34... Rb1+ {[%clk 0:00:04.4]} 35. Kh2 {[%clk 0:00:12]} 35... Ng4+ {[%clk
0:00:05]} 36. Kh3 {[%clk 0:00:12.1]} 36... Nxf2+ {[%clk 0:00:05.9]} 37. Rxf2
{[%clk 0:00:12.1]} 37... h5 {[%clk 0:00:06.6]} 38. Kh4 {[%clk 0:00:12.1]} 38...
Kh6 {[%clk 0:00:06.2]} 39. g4 {[%clk 0:00:12.6]} 39... g5+ {[%clk 0:00:06.2]}
40. Kg3 {[%clk 0:00:12.9]} 40... h4+ {[%clk 0:00:05.5]} 41. Kf3 {[%clk
0:00:13.2]} 41... Re1 {[%clk 0:00:04.4]} 42. Rc2 {[%clk 0:00:12.6]} 42... Re3+
{[%clk 0:00:04.5]} 43. Kf2 {[%clk 0:00:13]} 43... Re4 {[%clk 0:00:03.4]} 44. Rc7
{[%clk 0:00:12.6]} 44... Rf4+ {[%clk 0:00:03.8]} 45. Ke2 {[%clk 0:00:11.9]}
45... Rxg4 {[%clk 0:00:04.1]} 46. Re7 {[%clk 0:00:12.1]} 46... Rxg2+ {[%clk
0:00:04.2]} 47. Kf3 {[%clk 0:00:12]} 47... Rg3+ {[%clk 0:00:04.8]} 48. Ke4
{[%clk 0:00:11.9]} 48... Re3+ {[%clk 0:00:05.6]} 49. Kf5 {[%clk 0:00:12.1]}
49... Rf3+ {[%clk 0:00:04.9]} 50. Ke4 {[%clk 0:00:12.4]} 50... Rf4+ {[%clk
0:00:04.8]} 51. Kxe5 {[%clk 0:00:12.8]} 51... Kh5 {[%clk 0:00:04.3]} 52. Rxb7
{[%clk 0:00:12]} 52... Kg4 {[%clk 0:00:04.9]} 53. Rxa7 {[%clk 0:00:11.5]} 53...
h3 {[%clk 0:00:05.5]} 54. Rh7 {[%clk 0:00:11.1]} 54... Kg3 {[%clk 0:00:05]} 55.
Rg7 {[%clk 0:00:10.4]} 55... g4 {[%clk 0:00:04.8]} 56. Rc7 {[%clk 0:00:11]}
56... h2 {[%clk 0:00:04]} 57. Rc1 {[%clk 0:00:10.5]} 57... Rf2 {[%clk
0:00:03.2]} 58. Rb1 {[%clk 0:00:09.4]} 58... Kg2 {[%clk 0:00:03.6]} 59. Kxd4
{[%clk 0:00:09]} 59... Rf1 {[%clk 0:00:02.9]} 60. Rb2+ {[%clk 0:00:09]} 60...
Rf2 {[%clk 0:00:02.7]} 61. Rb1 {[%clk 0:00:08.8]} 61... h1=Q {[%clk 0:00:03.6]}
62. Rb3 {[%clk 0:00:07.8]} 62... Rf3 {[%clk 0:00:03.2]} 63. Rb2+ {[%clk
0:00:07.3]} 63... Kg3 {[%clk 0:00:03.4]} 64. Rd2 {[%clk 0:00:06]} 64... Qe1
{[%clk 0:00:03.5]} 65. Rb2 {[%clk 0:00:02.5]} 65... Qe3+ {[%clk 0:00:04]} 66.
Kc4 {[%clk 0:00:02.6]} 66... Rf4+ {[%clk 0:00:04.4]} 67. Kd5 {[%clk 0:00:02.1]}
67... Qd3+ {[%clk 0:00:04.5]} 68. Ke5 {[%clk 0:00:02.2]} 68... Qc3+ {[%clk
0:00:05]} 69. Ke6 {[%clk 0:00:01.8]} 69... Qxb2 {[%clk 0:00:05.9]} 70. Ke7
{[%clk 0:00:01.9]} 70... Qe2+ {[%clk 0:00:06.5]} 71. Kd6 {[%clk 0:00:01.8]}
71... Rd4+ {[%clk 0:00:07.2]} 72. Kc5 {[%clk 0:00:02.7]} 72... Rd1 {[%clk
0:00:08.1]} 73. Kb4 {[%clk 0:00:02.3]} 73... Qc2 {[%clk 0:00:08.6]} 74. Ka3
{[%clk 0:00:02.4]} 74... Rb1 {[%clk 0:00:09.1]} 1/2-1/2